Workbook

Sheet Lease Calculations
A1: NNN LEASE - 10 YEAR
A2: Year # | B2: Building SF | C2: Annual Base Rent Per SF | D2: Monthly Rent | F2: Annual Rent
A3: Year 1 | B3: 5637 | C3: =B14 -> 16 | D3: =(B3*C3)/12 -> 7516 | F3: =B3*C3 -> 90192
A4: Year 2 | B4: =B3 -> 5637 | C4: =C3*B15 -> 16.4 | D4: 7703.9 | F4: 92446.8
A5: Year 3 | B5: =B4 -> 5637 | C5: =C4*B15 -> 16.81 | D5: 7896.4975 | F5: 94757.97
A6: Year 4 | B6: 5637 | C6: =C5*B15 -> 17.23025 | D6: 8093.909937 | F6: 97126.91925
A7: Year 5 | B7: 5637 | C7: =C6*B15 -> 17.66100625 | D7: 8296.257686 | F7: 99555.09223
A8: Year 6 | B8: 5637 | C8: =C7*B15 -> 18.10253141 | D8: 8503.664128 | F8: 102043.9695
A9: Year 7 | B9: 5637 | C9: =C8*B15 -> 18.55509469 | D9: 8716.255731 | F9: 104595.0688
A10: Year 8 | B10: 5637 | C10: =C9*B15 -> 19.01897206 | D10: 8934.162125 | F10: 107209.9455
A11: Year 9 | B11: 5637 | C11: =C10*B15 -> 19.49444636 | D11: 9157.516178 | F11: 109890.1941
A12: Year 10 | B12: 5637 | C12: =C11*B15 -> 19.98180752 | D12: 9386.454082 | F12: 112637.449
F13: =SUM(F3:F12) -> 1010455.408
A14: Total Rent $ per SF | B14: 16
A15: Annual Rent Increase (3%) | B15: 1.025
A17: NNN Terms:
A18: 1. The tenant pays those operating expenses on top of the base rent. Operating expenses include line items related to utilities, building insurance, maintenance costs, and property taxes.
A19: 2. Two Months Deposit
A20: 3. Lease Guaranteed for the entire term of Lease
A21: 4. Option to renew
A23: DISCLAIMER: While the information is deemed reliable, no warranty is expressed or implied.
A24: Any information important to you or another party should be independently confirmed
A25: within an applicable due diligence period.
